bitfinex/quotes_SOLUSD_20241223
["timestamp","ask_amount","ask_price","bid_price","bid_amount"]
[1734979406663,0.12549,185.5,185.38,22.61565396]
[1734979406868,0.12549,185.5,185.39,9.12995396]
[1734979407244,20.0,185.48,185.38,13.4857]
[1734979408268,20.0,185.48,185.36,9.12995396]
[1734979409056,20.0,185.48,185.37,23.776884]
[1734979409640,20.0,185.48,185.38,23.776884]
[1734979410052,20.0,185.48,185.36,32.90683796]
[1734979410861,1.5972,185.46,185.36,23.776884]
[1734979411039,21.5972,185.46,185.35,23.776884]
[1734979412536,6.5204,185.45,185.35,23.776884]
[1734979413769,1.6414,185.41,185.31,0.6832664]
[1734979413941,0.12549,185.39,185.31,0.6832664]
[1734979414278,20.0,185.37,185.31,0.6832664]
[1734979414444,0.12549,185.35,185.31,0.6832664]
[1734979414836,20.0,185.32,185.15,16.2]
[1734979415071,20.0,185.31,185.16,14.31130083]
[1734979415367,0.12549,185.3,185.16,14.31130083]
[1734979415579,20.12549,185.3,185.16,22.63175396]
[1734979415768,20.12549,185.3,185.16,13.5018]
[1734979416065,0.9827,185.29,185.19,20.0]
[1734979416236,6.564,185.27,185.15,5.733876]
[1734979416436,0.12549,185.26,185.15,20.07526379]
[1734979416636,6.564,185.27,185.16,14.34138779]
[1734979416863,6.564,185.27,185.17,14.34138779]
[1734979417068,6.564,185.27,185.18,14.34138779]
[1734979417248,0.9827,185.29,185.23,14.34138779]
[1734979417433,6.4526,185.31,185.25,14.34138779]
[1734979417638,7.4353,185.35,185.26,23.776884]
[1734979418664,7.4353,185.35,185.26,38.11827179]
[1734979418967,7.4353,185.35,185.26,23.776884]
[1734979419741,0.12549,185.34,185.23,14.34138779]
[1734979419943,0.12549,185.31,185.18,14.34138779]
[1734979420474,0.12549,185.31,185.17,14.46687779]
[1734979420646,0.12549,185.31,185.18,14.34138779]
[1734979420847,0.12549,185.31,185.17,14.46687779]
[1734979421169,0.12549,185.31,185.17,14.34138779]
[1734979421373,23.902374,185.31,185.16,14.34138779]
[1734979421670,20.12549,185.27,185.15,14.34138779]
[1734979421883,20.12549,185.27,185.16,14.34138779]
[1734979422870,20.12549,185.27,185.14,19.46393303]
[1734979423078,0.12549,185.25,185.14,5.12254524]
[1734979424756,0.12549,185.25,185.15,23.776884]
[1734979424957,0.9827,185.26,185.18,23.776884]
[1734979425155,7.5337,185.3,185.2,23.776884]
[1734979425359,0.12549,185.29,185.2,23.776884]
[1734979426184,7.5337,185.3,185.2,23.776884]
[1734979426783,0.12549,185.29,185.19,23.776884]
[1734979426982,7.5337,185.3,185.19,23.776884]
[1734979427988,0.12549,185.29,185.17,23.776884]
[1734979428161,0.12549,185.26,185.17,23.776884]
[1734979428374,0.12549,185.26,185.16,23.776884]
[1734979428887,0.12549,185.26,185.14,19.46393303]
[1734979429489,0.12549,185.26,185.14,5.12254524]
[1734979430097,0.12549,185.26,185.14,19.46393303]
[1734979430468,0.12549,185.26,185.15,23.776884]
[1734979432192,0.12549,185.26,185.15,38.11827179]
[1734979432383,0.12549,185.26,185.15,38.92808485]
[1734979433113,0.12549,185.26,185.15,23.776884]
[1734979435276,0.12549,185.26,185.15,38.11827179]
[1734979435791,7.5337,185.3,185.19,14.34138779]
[1734979435991,7.5337,185.3,185.22,14.34138779]
[1734979436176,0.12549,185.29,185.17,20.0]
[1734979436375,6.1492,185.26,185.12,0.6832664]
[1734979436575,4.04370647,185.25,185.12,0.6832664]
[1734979436989,0.12549,185.24,185.12,0.6832664]
[1734979437201,0.12549,185.22,185.12,0.6832664]
[1734979437667,20.12549,185.22,185.13,23.776884]
[1734979438395,20.0,185.22,185.13,23.776884]
[1734979438596,20.0,185.23,185.13,23.776884]
[1734979439000,0.12549,185.22,185.13,23.776884]
[1734979439283,0.12549,185.22,185.12,0.6832664]
[1734979441402,0.12549,185.17,185.12,0.6832664]
[1734979442700,20.12549,185.13,185.12,0.6832664]
[1734979445090,20.0,185.13,185.12,0.6832664]
[1734979445811,20.12549,185.13,185.12,0.6832664]
[1734979446488,20.12549,185.13,184.96,27.85758779]
[1734979446489,20.12549,185.12,184.96,27.85758779]
[1734979446708,20.12549,185.12,184.96,13.5162]
[1734979447111,22.82639,185.12,184.96,13.5162]
[1734979447316,0.12549,185.1,184.96,13.5162]
[1734979447639,0.12549,185.05,184.94,2.2254664]
[1734979448104,20.0,185.06,184.95,15.15211376]
[1734979448306,20.0,185.06,184.94,16.56685419]
[1734979448513,0.12549,185.05,184.94,15.02465419]
[1734979449209,20.0,185.06,184.96,14.34138779]
[1734979449402,20.0,185.06,184.97,14.34138779]
[1734979449606,6.5776,185.09,185.0,14.34138779]
[1734979449802,6.5776,185.09,185.01,38.11827179]
[1734979449987,0.9827,185.12,185.02,15.15179104]
[1734979450194,6.0077,185.13,185.03,38.11827179]
[1734979450392,0.12549,185.12,185.03,23.776884]
[1734979450589,6.0077,185.13,185.03,23.776884]
[1734979451191,0.12549,185.12,185.02,23.776884]
[1734979451487,20.0,185.1,185.0,23.776884]
[1734979452914,20.0,185.1,185.0,38.11827179]
[1734979453083,20.0,185.1,185.02,23.776884]
[1734979453732,0.12549,185.12,185.02,23.776884]
[1734979454110,20.0,185.1,185.01,23.776884]
[1734979454418,20.0,185.1,185.0,23.776884]
[1734979454598,20.0,185.1,184.97,33.5154]
[1734979454908,20.0,185.1,184.99,14.34138779]
[1734979455097,20.0,185.1,185.0,14.34138779]
[1734979455417,20.0,185.1,184.99,15.15186542]
[1734979455620,20.0,185.1,184.98,14.34138779]
[1734979455789,20.0,185.1,184.99,14.34138779]
[1734979456225,6.0077,185.13,185.01,38.11827179]
[1734979456489,6.0077,185.13,185.01,23.776884]
[1734979456709,6.0077,185.13,185.03,23.776884]
[1734979456922,6.0077,185.13,185.03,38.11827179]
[1734979457112,0.12549,185.12,185.02,23.776884]
[1734979457743,0.12549,185.12,184.98,14.34138779]
[1734979458027,20.12549,185.1,184.99,20.0]
[1734979459602,20.12549,185.1,184.98,23.776884]
[1734979460509,20.12549,185.1,185.0,14.34138779]
[1734979460698,20.12549,185.1,185.01,23.776884]
[1734979462723,20.12549,185.1,185.0,23.776884]
[1734979462903,20.12549,185.1,185.0,38.11827179]
[1734979463135,20.0,185.1,185.0,38.11827179]
[1734979463307,0.9827,185.11,185.01,14.32316433]
[1734979463511,0.9827,185.11,185.02,38.11827179]
[1734979463821,6.0077,185.13,185.04,38.11827179]
[1734979463989,6.0077,185.13,185.04,23.776884]
[1734979465017,0.12549,185.12,185.02,23.776884]
[1734979465513,0.12549,185.12,184.99,15.15174662]
[1734979465723,20.0,185.1,184.99,15.15174662]
[1734979466526,20.0,185.1,185.0,23.776884]
[1734979467924,20.0,185.1,185.0,38.11827179]
[1734979468495,20.0,185.1,185.01,15.15187461]
[1734979468696,20.0,185.1,185.02,23.776884]
[1734979470321,20.0,185.1,185.01,23.776884]
[1734979472028,0.12549,185.09,185.01,23.776884]
[1734979472817,0.12549,185.07,184.94,0.6832664]
[1734979473006,6.4256,185.13,185.02,14.34138779]
[1734979473213,6.4256,185.13,185.06,14.34138779]
[1734979473738,0.12549,185.12,185.02,14.34138779]
[1734979474241,0.12549,185.12,185.02,23.776884]
[1734979474824,0.12549,185.12,185.0,15.15160868]
[1734979475028,0.12549,185.12,185.01,23.776884]
[1734979476134,0.12549,185.12,185.02,14.34138779]
[1734979476337,0.12549,185.12,185.03,23.776884]
[1734979477238,0.12549,185.12,185.02,23.776884]
[1734979478842,6.4256,185.13,185.04,23.776884]
[1734979479041,6.4256,185.13,185.04,38.11827179]
[1734979479206,6.4256,185.13,185.04,23.776884]
[1734979479733,6.4256,185.13,185.06,14.34138779]
[1734979479930,0.9827,185.14,185.07,23.776884]
[1734979480522,2.7003,185.17,185.08,23.776884]
[1734979481621,2.7003,185.17,185.07,23.776884]
[1734979482125,0.12549,185.16,185.06,23.776884]
[1734979482315,2.7003,185.17,185.05,14.34138779]
[1734979482513,2.7003,185.17,185.06,23.776884]
[1734979484119,6.5042,185.18,185.06,14.34138779]
[1734979484331,6.5042,185.18,185.08,23.776884]
[1734979485141,6.5042,185.18,185.09,0.12549]
[1734979485317,0.9827,185.19,185.11,14.34138779]
[1734979485658,0.9827,185.19,185.12,23.776884]
[1734979486407,7.6112,185.22,185.12,23.776884]
[1734979489525,7.6112,185.22,185.11,23.776884]
[1734979489729,20.0,185.19,185.1,23.776884]
[1734979490558,0.12549,185.18,185.06,15.86158779]
[1734979490851,2.82549,185.18,185.05,13.5091]
[1734979491744,7.5252,185.17,185.03,14.34138779]
[1734979491920,20.0,185.14,185.03,14.34138779]
[1734979492121,20.0,185.14,185.02,29.51378779]
[1734979493025,20.0,185.14,185.03,14.34138779]
[1734979493446,20.0,185.14,185.02,29.51378779]
[1734979494056,20.0,185.14,185.03,23.776884]
[1734979496749,0.12549,185.13,185.02,23.776884]
[1734979496954,20.12549,185.13,184.99,34.34138779]
[1734979497156,0.12549,185.11,184.99,34.34138779]
[1734979497455,0.12549,185.11,184.99,20.0]
[1734979497646,0.12549,185.11,184.99,34.34138779]
[1734979497959,20.0,185.09,184.98,14.34138779]
[1734979498143,20.0,185.09,184.99,23.776884]
[1734979500463,20.0,185.09,184.98,14.34138779]
[1734979500464,20.0,185.09,184.98,23.776884]
[1734979501459,0.12549,185.08,184.96,13.516]
[1734979501757,0.12549,185.06,184.94,0.6832664]
[1734979501934,7.4783,185.07,184.99,14.34138779]
[1734979502135,2.7006,185.15,185.03,14.34138779]
[1734979502335,2.7006,185.15,185.04,14.34138779]
[1734979502562,2.7006,185.15,185.01,0.12549]
[1734979502760,2.7006,185.15,185.03,14.34138779]
[1734979502963,7.4783,185.17,185.05,23.776884]
[1734979503259,0.12549,185.16,185.05,23.776884]
[1734979503460,7.4783,185.17,185.05,23.776884]
[1734979503656,0.12549,185.13,185.05,23.776884]
[1734979503846,0.12549,185.13,185.04,23.776884]
[1734979504541,20.0,185.14,185.04,38.11827179]
[1734979504955,20.0,185.14,185.04,23.776884]
[1734979505261,0.12549,185.13,185.03,23.776884]
[1734979506365,0.12549,185.13,185.03,38.11827179]
[1734979506562,0.12549,185.13,185.04,23.776884]
[1734979506865,20.0,185.14,185.04,23.776884]
[1734979507035,0.12549,185.13,185.03,23.776884]
[1734979508768,0.12549,185.13,185.03,14.34138779]
[1734979508951,20.0,185.14,185.04,38.11827179]
[1734979509137,20.0,185.14,185.04,23.776884]
[1734979509667,0.12549,185.13,185.03,23.776884]
[1734979511166,0.12549,185.08,184.92,8.2274]
[1734979511338,20.0,185.04,184.91,16.83880537]
[1734979511540,6.4396,184.98,184.91,16.83880537]
[1734979511865,43.902374,184.94,184.91,7.08340537]
[1734979512069,0.12549,184.89,184.79,66.65287685]
[1734979512365,20.0,184.9,184.81,14.34138779]
[1734979512560,27.54034843,185.07,184.85,51.32779391]
[1734979512760,27.42632635,185.02,184.85,51.32779391]
[1734979513065,0.12549,184.98,184.89,14.34138779]
[1734979513261,0.12549,184.98,184.88,14.34138779]
[1734979513465,20.12549,185.0,184.89,0.81100952]
[1734979513654,11.19911334,184.97,184.92,14.34138779]
[1734979513857,11.19911334,184.97,184.95,14.34138779]
[1734979514165,11.19911334,184.97,184.94,23.776884]
[1734979514342,8.46207588,185.01,184.92,23.776884]
[1734979514665,8.46207588,185.01,184.91,23.776884]
[1734979514855,8.46207588,184.99,184.93,23.776884]
[1734979515365,8.46207588,184.99,184.93,46.78462141]
[1734979515565,8.46207588,184.99,184.95,23.776884]
[1734979515871,8.46207588,184.99,184.97,23.776884]
[1734979516053,8.46207588,185.03,184.98,46.78462141]
[1734979516254,8.46207588,185.03,184.99,23.776884]
[1734979516867,8.46207588,185.07,184.99,23.776884]
[1734979517245,8.46207588,185.08,184.99,23.776884]
[1734979517576,8.46207588,185.08,185.01,46.78462141]
[1734979517868,8.46207588,185.08,185.04,23.776884]
[1734979518072,8.46207588,185.11,185.04,46.78462141]
[1734979518284,8.46207588,185.11,185.04,23.776884]
[1734979518766,8.46207588,185.12,185.04,23.776884]
[1734979519951,8.46207588,185.12,185.06,23.00773741]
[1734979520149,8.46207588,185.12,185.09,23.776884]
[1734979520453,7.09362586,185.19,185.09,23.776884]
[1734979520454,8.46207588,185.14,185.09,23.776884]
[1734979520670,8.46207588,185.14,185.08,23.776884]
[1734979520963,33.82296101,185.19,185.08,23.776884]
[1734979521341,33.82296101,185.19,185.09,0.81014204]
[1734979521546,6.629,185.21,185.09,23.81787945]
[1734979521774,6.629,185.21,185.1,23.776884]
[1734979522172,0.12549,185.2,185.1,23.776884]
[1734979522471,6.629,185.21,185.12,23.00773741]
[1734979522651,6.629,185.21,185.11,23.776884]
[1734979523218,0.12549,185.2,185.06,23.00773741]
[1734979523370,0.12549,185.2,185.07,43.00773741]
[1734979523562,0.12549,185.2,185.07,43.81789934]
[1734979523748,0.12549,185.2,185.08,23.00773741]
[1734979523749,20.0,185.18,185.08,23.00773741]
[1734979523948,0.12549,185.17,185.07,20.0]
[1734979524386,20.0,185.18,185.07,20.0]
[1734979524681,20.0,185.18,185.07,43.00773741]
[1734979524879,20.0,185.18,185.08,23.00773741]
[1734979525053,0.12549,185.17,185.03,23.00773741]
[1734979525248,0.12549,185.15,184.99,1.6477]
[1734979525473,2.7001,185.18,185.07,23.00773741]
[1734979525785,0.12549,185.17,185.04,23.00773741]
[1734979525950,0.12549,185.17,185.03,0.12549]
[1734979526145,0.12549,185.17,185.04,0.81026128]
[1734979526381,0.12549,185.17,185.04,23.81799869]
[1734979526554,0.12549,185.17,185.05,46.78462141]
[1734979526976,6.629,185.21,185.07,46.78462141]
[1734979527191,6.629,185.21,185.1,46.78462141]
[1734979527385,0.12549,185.2,185.1,23.776884]
[1734979527555,0.12549,185.2,185.05,23.00773741]
[1734979527878,2.82519,185.2,185.05,23.776884]
[1734979528076,2.82519,185.2,185.06,23.776884]
[1734979528383,0.12549,185.17,185.06,23.776884]
[1734979528785,0.12549,185.17,185.06,46.78462141]
[1734979529453,0.12549,185.17,185.06,23.776884]
[1734979529785,0.12549,185.13,184.98,23.00773741]
[1734979529989,0.12549,185.1,184.97,23.00773741]
[1734979530159,0.12549,185.1,184.96,23.00773741]
[1734979531085,0.12549,185.1,184.97,23.00773741]
[1734979531689,2.82679,185.1,184.97,23.00773741]
[1734979531990,2.82679,185.1,184.96,23.00773741]
[1734979532683,2.82679,185.1,184.95,23.00773741]
[1734979532866,0.12549,185.05,184.91,23.00773741]
[1734979533194,0.12549,185.05,184.94,23.00773741]
[1734979533385,6.5022,185.09,184.95,0.81068189]
[1734979533575,6.5022,185.09,185.0,23.00773741]
[1734979533889,0.12549,185.08,185.0,23.00773741]
[1734979534065,0.12549,185.08,184.99,23.00773741]
[1734979534383,0.12549,185.08,184.95,20.81068189]
[1734979534384,20.0,185.06,184.96,23.00773741]
[1734979534601,20.0,185.06,184.97,23.776884]
[1734979535497,6.5022,185.09,185.02,23.776884]
[1734979535806,6.5022,185.09,185.02,46.78462141]
[1734979535989,0.12549,185.12,185.04,23.776884]
[1734979537802,20.0,185.11,185.04,23.776884]
[1734979538789,20.0,185.11,185.03,23.776884]
[1734979539182,20.0,185.11,185.02,23.776884]
[1734979539572,0.12549,185.1,184.98,24.57283741]
[1734979539775,0.12549,185.1,184.97,23.00773741]
[1734979540008,0.12549,185.1,184.99,23.00773741]
[1734979540385,0.12549,185.1,185.0,23.00773741]
[1734979540604,20.0,185.11,185.02,23.00773741]
[1734979540987,20.0,185.11,185.03,23.776884]
[1734979543230,0.12549,185.1,184.97,23.776884]
[1734979543419,0.12549,185.1,184.98,23.00773741]
[1734979543998,0.12549,185.1,184.99,23.00773741]
[1734979544195,22.7011,185.11,185.01,23.00773741]
[1734979544521,20.0,185.11,185.02,23.00773741]
[1734979544816,20.0,185.11,185.03,23.776884]
[1734979551825,10.0508,185.14,185.04,14.36827642]
[1734979552027,10.0508,185.14,185.05,23.776884]
[1734979552392,0.12549,185.13,184.97,14.32588265]
[1734979552595,0.12549,185.13,184.98,14.36827642]
[1734979553007,0.12549,185.1,184.98,14.36827642]
[1734979553931,0.12549,185.1,184.99,23.776884]
[1734979554123,2.82679,185.1,184.98,23.776884]
[1734979554437,2.82679,185.1,184.98,38.14516042]
[1734979555408,2.82679,185.1,185.0,14.36827642]
[1734979555641,2.82679,185.1,185.01,23.776884]
[1734979556525,2.82679,185.1,184.95,15.17885136]
[1734979556721,20.12549,185.06,184.94,20.0]
[1734979557048,20.12549,185.06,184.95,14.36827642]
[1734979557601,20.12549,185.06,184.96,14.36827642]
[1734979557802,20.0,185.06,184.97,23.776884]
[1734979558106,20.0,185.06,185.0,23.776884]
[1734979559403,6.5519,185.09,185.02,14.36827642]
[1734979559613,7.4361,185.14,185.04,23.776884]
[1734979559813,7.4361,185.14,185.04,38.14516042]
[1734979560134,7.4361,185.14,185.06,23.776884]
[1734979560339,14.57127588,185.18,185.08,14.36827642]
[1734979560547,6.1092,185.18,185.09,38.14516042]
[1734979561706,6.1092,185.18,185.08,23.776884]
[1734979562318,0.12549,185.17,185.08,23.776884]
[1734979562633,20.0,185.15,185.07,23.776884]
[1734979563027,6.1092,185.18,185.08,23.776884]
[1734979563239,6.1092,185.18,185.11,14.36827642]
[1734979563403,6.6327,185.23,185.12,38.14516042]
[1734979564435,6.6327,185.23,185.15,38.14516042]
[1734979564743,6.6327,185.23,185.13,38.14516042]
[1734979564919,0.12549,185.22,185.07,1.5295]
[1734979565110,6.82911586,185.22,185.08,23.776884]
[1734979565309,0.12549,185.2,185.08,23.776884]
[1734979565621,0.12549,185.2,185.08,38.14516042]
[1734979565930,0.12549,185.18,185.08,23.776884]
[1734979566122,0.12549,185.18,185.07,23.776884]
[1734979566305,0.12549,185.18,185.07,46.7519308]
[1734979566820,19.12549,185.19,185.07,46.7519308]
[1734979567018,2.6996,185.21,185.07,46.7519308]
[1734979567532,2.6996,185.21,185.08,22.9750468]
[1734979568532,2.6996,185.21,185.07,46.7519308]
[1734979569036,20.0,185.2,185.09,22.9750468]
[1734979569205,15.09477588,185.23,185.11,46.7519308]
[1734979569411,15.09477588,185.23,185.12,22.9750468]
[1734979569752,15.09477588,185.23,185.13,23.776884]
[1734979570120,15.09477588,185.23,185.15,23.776884]
[1734979570448,6.6327,185.23,185.15,46.7519308]
[1734979570617,6.6327,185.23,185.13,22.9750468]
[1734979570816,6.6327,185.23,185.14,23.776884]
[1734979571329,6.6327,185.23,185.13,23.776884]
[1734979571550,6.6327,185.23,185.13,46.7519308]
[1734979572353,20.0,185.2,185.12,24.5798468]
[1734979572539,20.0,185.2,185.07,24.5862468]
[1734979572540,0.12549,185.19,185.07,24.5862468]
[1734979572852,0.12549,185.19,185.07,1.6112]
[1734979573260,0.12549,185.19,185.07,24.5862468]
[1734979573928,0.12549,185.17,185.07,1.6112]
[1734979574750,20.12549,185.17,185.07,1.6112]
[1734979575782,0.12549,185.15,185.05,22.9750468]
[1734979576133,20.0,185.11,185.02,1.6289]
[1734979576467,20.0,185.11,184.99,22.9750468]
[1734979576671,20.0,185.11,185.01,22.9750468]
[1734979576960,20.0,185.11,185.04,22.9750468]
[1734979577328,6.3668,185.14,185.05,22.9750468]
[1734979578861,6.3668,185.14,185.04,22.9750468]
[1734979579154,6.3668,185.14,185.05,23.776884]
[1734979580252,0.12549,185.13,185.0,0.81035758]
[1734979580431,20.0,185.11,185.01,22.9750468]
[1734979580646,20.0,185.11,185.02,23.776884]
[1734979580832,20.0,185.11,185.02,22.9750468]
[1734979581146,0.12549,185.1,184.98,22.9750468]
[1734979581361,0.12549,185.06,184.95,22.9750468]
[1734979581965,0.12549,185.06,184.96,22.9750468]
[1734979582142,0.12549,185.06,184.97,22.9750468]
[1734979582529,20.0,185.07,184.98,46.7519308]
[1734979582736,20.0,185.09,184.99,22.9750468]
[1734979583152,20.0,185.1,185.02,22.9750468]
[1734979583361,20.0,185.11,185.04,22.9750468]
[1734979583542,20.0,185.11,185.05,22.9750468]
[1734979584133,6.3668,185.14,185.05,22.9750468]
[1734979584761,6.3668,185.14,185.04,22.9750468]
[1734979585134,6.3668,185.14,185.05,23.776884]
[1734979585656,20.0,185.11,185.04,46.7519308]
[1734979586038,20.0,185.11,185.04,23.776884]
[1734979586259,20.0,185.11,185.03,23.776884]
[1734979586437,20.0,185.11,185.04,46.7519308]
[1734979586762,20.0,185.11,185.05,23.776884]
[1734979587646,20.0,185.11,185.04,23.776884]
[1734979589363,20.0,185.11,185.03,23.776884]
[1734979589840,20.0,185.11,185.02,23.776884]
[1734979590457,20.0,185.11,184.98,14.36726959]
[1734979590963,0.12549,185.1,184.97,14.36726959]
[1734979591139,0.12549,185.1,184.96,15.97505003]
[1734979591140,0.12549,185.1,184.96,16.01616959]
[1734979591342,0.12549,185.08,184.96,1.6489]
[1734979592272,20.0,185.04,184.93,23.00562371]
[1734979592645,20.0,185.04,184.94,23.00562371]
[1734979592845,20.0,185.04,184.95,23.776884]
[1734979595764,20.0,185.04,184.95,46.78250771]
[1734979596066,20.0,185.04,184.92,15.1112]
[1734979596067,20.0,185.04,184.99,23.776884]
[1734979596371,7.4096,185.07,185.0,23.00562371]
[1734979596547,7.4096,185.07,184.99,46.78250771]
[1734979596748,6.4269,185.07,184.99,46.78250771]
[1734979597066,6.4269,185.07,185.01,23.776884]
[1734979597256,6.4269,185.07,184.99,46.78250771]
[1734979598675,6.4269,185.07,185.0,23.00562371]
[1734979598889,6.4269,185.07,185.01,23.776884]
[1734979599856,0.9827,185.11,185.01,46.78250771]
[1734979600057,0.9827,185.11,185.03,23.776884]
[1734979600351,0.9827,185.11,185.01,46.78250771]
[1734979600569,0.9827,185.11,185.01,23.776884]
[1734979601374,20.0,185.09,185.01,23.776884]
[1734979602367,20.0,185.09,184.96,23.00562371]
[1734979602864,20.0,185.09,184.98,23.00562371]
[1734979603061,20.0,185.09,184.99,23.00562371]
[1734979603672,0.12549,185.08,184.97,23.00562371]
[1734979603867,0.12549,185.08,184.96,23.81627362]
[1734979604451,0.12549,185.08,184.97,23.00562371]
[1734979604855,20.0,185.09,184.99,23.776884]
[1734979605353,20.0,185.09,185.01,23.776884]
[1734979605672,20.0,185.09,184.99,46.78250771]
[1734979606480,20.0,185.09,184.99,23.776884]
[1734979606785,9.53080138,185.08,184.93,23.00562371]
[1734979606975,20.0,185.05,184.93,23.00562371]
[1734979607159,20.0,185.05,184.94,23.00562371]
[1734979607360,20.0,185.05,184.95,23.00562371]
[1734979608089,20.0,185.05,184.96,23.776884]
[1734979608677,20.0,185.05,184.95,23.776884]
[1734979610792,20.0,185.05,184.95,23.00562371]
[1734979611093,20.0,185.05,184.96,23.776884]
[1734979612572,6.2143,185.04,184.96,23.776884]
[1734979613316,6.2143,185.04,184.95,23.776884]
[1734979614202,6.2143,185.04,184.94,23.00562371]
[1734979614203,6.2143,185.04,184.94,38.15409025]
[1734979614494,6.2143,185.04,184.95,14.37720625]
[1734979614798,6.2143,185.04,184.96,23.776884]
[1734979615091,6.2143,185.04,184.94,38.15409025]
[1734979616592,6.2143,185.04,184.94,23.776884]
[1734979616796,6.2143,185.04,184.94,38.15409025]
[1734979619585,20.0,185.01,184.88,13.5218]
[1734979619787,20.0,185.01,184.87,1.5065]
[1734979620305,0.12549,185.0,184.87,15.88370625]
[1734979620487,20.0,185.01,184.9,14.37720625]
[1734979621192,20.0,185.01,184.91,23.776884]
[1734979621682,20.0,185.01,184.9,23.776884]
[1734979622107,20.0,185.01,184.89,23.776884]
[1734979623312,2.82829,185.0,184.88,23.776884]
[1734979623495,2.82829,185.0,184.88,38.15409025]
[1734979624108,2.82829,185.0,184.88,23.776884]
[1734979624804,2.82829,185.0,184.88,14.37720625]
[1734979625107,2.82829,185.0,184.89,23.776884]
[1734979626495,20.0,185.01,184.89,38.15409025]
[1734979627085,20.0,185.01,184.91,14.37720625]
[1734979627292,0.9827,185.03,184.95,14.37720625]
[1734979627495,0.9827,185.03,184.97,23.776884]
[1734979628291,0.9827,185.03,184.96,23.776884]
[1734979630518,0.9827,185.03,184.95,38.15409025]
[1734979630812,0.9827,185.07,184.98,38.15409025]
[1734979630981,6.1754,185.09,185.02,14.37720625]
[1734979631187,6.1754,185.09,185.03,23.776884]
[1734979631606,6.1754,185.09,184.97,14.37720625]
[1734979631796,6.1754,185.09,184.95,14.37720625]
[1734979632108,20.0,185.06,184.98,14.37720625]
[1734979632609,20.0,185.06,184.99,23.776884]
[1734979633200,20.0,185.06,184.98,23.776884]
[1734979634011,6.1754,185.09,184.98,14.37720625]
[1734979634200,6.1754,185.09,184.99,23.776884]
[1734979634404,6.1754,185.09,185.0,23.776884]
[1734979634805,6.1754,185.09,185.02,38.15409025]
[1734979634998,6.1754,185.09,185.04,23.776884]
[1734979635385,6.1754,185.09,185.02,23.776884]
[1734979635590,6.1754,185.09,185.0,23.776884]
[1734979635792,0.12549,185.08,184.96,14.37720625]
[1734979635990,2.82699,185.08,184.96,14.37720625]
[1734979636190,2.82699,185.08,184.97,14.37720625]
[1734979636491,6.1754,185.09,184.97,14.37720625]
[1734979636694,6.1754,185.09,185.01,14.37720625]
[1734979636918,6.1754,185.09,185.02,14.37720625]
[1734979637487,6.1754,185.09,185.03,23.776884]
[1734979637840,6.70371138,185.15,185.05,14.37720625]
[1734979637841,12.88901138,185.15,185.05,14.37720625]
[1734979638120,20.0,185.12,185.06,23.776884]
[1734979638413,12.88901138,185.15,185.06,23.776884]
[1734979641210,12.88901138,185.15,185.02,14.37720625]
[1734979641423,20.0,185.12,185.03,23.776884]
[1734979641620,20.0,185.12,185.02,23.776884]
[1734979642022,20.0,185.12,185.02,38.15409025]
[1734979642194,20.0,185.12,185.03,14.37720625]
[1734979642530,20.0,185.12,185.02,38.15409025]
[1734979642708,20.0,185.12,185.02,23.776884]
[1734979643229,20.0,185.12,185.02,38.15409025]
[1734979643543,6.1853,185.15,185.07,23.776884]
[1734979645094,6.1853,185.15,185.06,23.776884]
[1734979645328,6.1853,185.15,185.04,23.776884]
[1734979646131,20.0,185.12,185.01,15.91180625]
[1734979646423,20.0,185.11,185.02,14.37720625]
[1734979646801,9.40431138,185.14,185.03,14.37720625]
[1734979647418,9.40431138,185.14,185.04,23.776884]
[1734979647722,20.0,185.11,185.04,23.776884]